fUST/lending_fUST_20260201
["ID","MTS","AMOUNT","RATE_DAILY","PERIOD"]
[404146378,1769879431879,-500.0,0.00013273,2]
[404146381,1769879431888,-147.30412359,0.00013273,2]
[404146384,1769879431904,-352.69587641,0.00013273,2]
[404146387,1769879431914,-210.94012359,0.00013273,2]
[404146391,1769879431927,-289.05987641,0.00013273,2]
[404146395,1769879431936,-340.75088524,0.00013273,2]
[404146402,1769879431947,-159.24911476,0.00013273,2]
[404146407,1769879431957,-476.6213963,0.00013273,2]
[404146411,1769879431967,-500.0,0.00013273,2]
[404146415,1769879431977,-500.0,0.00013273,2]
[404146419,1769879431988,-2384.11013493,0.00013273,2]
[404146426,1769879432003,-284.86986507,0.00013273,2]
[404146430,1769879432012,-333.60544809,0.00013273,2]
[404146434,1769879432021,-608.32613042,0.00013273,2]
[404146438,1769879432031,-500.0,0.00013273,2]
[404146442,1769879432041,-500.0,0.00013273,2]
[404146446,1769879432051,-500.0,0.00013273,2]
[404146449,1769879432062,-500.0,0.00013273,2]
[404146452,1769879432071,-150.0,0.00013322,2]
[404146455,1769879432080,-171.072703,0.00013372,2]
[404146458,1769879432089,-300.0,0.00013673,2]
[404146486,1769879432217,-500.0,0.00013698,2]
[404146489,1769879432228,-340.59139496,0.00013698,2]
[404146492,1769879432239,-500.0,0.00013698,2]
[404146495,1769879432249,-558.6931383,0.00013698,2]
[404146497,1769879432258,-500.0,0.00013698,2]
[404146499,1769879432268,-500.0,0.00013698,2]
[404146502,1769879432277,-500.0,0.00013698,2]
[404146504,1769879432287,-500.0,0.00013698,2]
[404146507,1769879432299,-202.84132016,0.00013698,2]
[404146510,1769879432324,-297.15867984,0.00013698,2]
[404146512,1769879432333,-601.95067646,0.00013698,2]
[404146514,1769879432342,-473.00995664,0.00013698,2]
[404146516,1769879432352,-581.92026226,0.00013698,2]
[404146518,1769879432361,-500.0,0.00013698,2]
[404146520,1769879432370,-500.0,0.00013698,2]
[404146522,1769879432380,-465.33680477,0.00013698,2]
[404146524,1769879432389,-234.14415303,0.00013698,2]
[404146526,1769879432401,-1000.0,0.00013699,2]
[404146528,1769879432411,-500.0,0.00013699,2]
[404146530,1769879432421,-476.55877196,0.00013699,2]
[404146532,1769879432430,-500.0,0.00013699,2]
[404146534,1769879432439,-500.0,0.00013699,2]
[404146536,1769879432449,-500.0,0.00013699,2]
[404146538,1769879432459,-500.0,0.00013699,2]
[404146540,1769879432469,-500.0,0.00013699,2]
[404146542,1769879432479,-500.0,0.00013699,2]
[404146544,1769879432488,-502.31560209,0.00013699,2]
[404146546,1769879432502,-500.0,0.00013699,2]
[404146548,1769879432526,-500.0,0.00013699,2]
[404146550,1769879432547,-500.0,0.00013699,2]
[404146552,1769879432565,-160.9968606,0.00013699,2]
[404146554,1769879432578,-500.0,0.00013699,2]
[404146556,1769879432588,-500.0,0.00013699,2]
[404146558,1769879432598,-500.0,0.00013699,2]
[404146560,1769879432609,-253.83346687,0.00013699,2]
[404146562,1769879432621,-500.0,0.00013699,2]
[404146565,1769879432631,-500.0,0.00013699,2]
[404146566,1769879432642,-500.0,0.00013699,2]
[404146568,1769879432658,-500.0,0.00013699,2]
[404146570,1769879432672,-500.0,0.00013699,2]
[404146572,1769879432683,-500.0,0.00013699,2]
[404146574,1769879432694,-500.0,0.00013699,2]
[404146576,1769879432704,-500.0,0.00013699,2]
[404146578,1769879432716,-500.0,0.00013699,2]
[404146580,1769879432725,-500.0,0.00013699,2]
[404146582,1769879432735,-525.56803818,0.00013699,2]
[404146584,1769879432746,-500.0,0.00013699,2]
[404146585,1769879432757,-500.0,0.00013699,2]
[404146588,1769879432776,-500.0,0.00013699,2]
[404146590,1769879432789,-500.0,0.00013699,2]
[404146592,1769879432798,-500.0,0.00013699,2]
[404146594,1769879432808,-192.4719613,0.00013699,2]
[404146595,1769879432818,-500.0,0.00013699,2]
[404146596,1769879432828,-500.0,0.00013699,2]
[404146597,1769879432839,-500.74586485,0.00013699,2]
[404146598,1769879432848,-500.0,0.00013699,2]
[404146599,1769879432859,-166.7694164,0.00013699,2]
[404146600,1769879432874,-500.0,0.00013699,2]
[404146601,1769879432885,-160.0096439,0.00013699,2]
[404146602,1769879432896,-500.69073258,0.00013699,2]
[404146603,1769879432911,-500.0,0.00013699,2]
[404146604,1769879432923,-500.0,0.00013699,2]
[404146605,1769879432935,-500.0,0.00013699,2]
[404146606,1769879432945,-526.69455758,0.00013699,2]
[404146607,1769879432955,-500.0,0.00013699,2]
[404146608,1769879432967,-500.7164092,0.00013699,2]
[404146609,1769879432977,-500.50388975,0.00013699,2]
[404146610,1769879432986,-301.56130493,0.00013699,2]
[404146611,1769879432996,-256.8848049,0.00013699,2]
[404146612,1769879433006,-500.0,0.00013699,2]
[404146613,1769879433015,-223.11,0.000137,2]
[404146614,1769879433025,-1000.0,0.00013821,2]
[404146615,1769879433035,-682.7321721,0.00013821,2]
[404146616,1769879433044,-1000.0,0.00013821,2]
[404146617,1769879433053,-1000.0,0.00013821,2]
[404146618,1769879433062,-1000.0,0.00013821,2]
[404146619,1769879433072,-1000.0,0.00013821,2]
[404146620,1769879433082,-1000.0,0.00013821,2]
[404146621,1769879433091,-1000.0,0.00013821,2]
[404146622,1769879433100,-1000.0,0.00013821,2]
[404146623,1769879433110,-1000.0,0.00013821,2]
[404146624,1769879433119,-600.0,0.00014221,2]
[404146625,1769879433128,-1000.0,0.00014247,2]
[404146626,1769879433137,-1000.0,0.00014247,2]
[404146627,1769879433148,-1000.0,0.00014247,2]
[404146628,1769879433164,-484.5242166,0.00014247,2]
[404146629,1769879433174,-1000.0,0.00014247,2]
[404146630,1769879433184,-1000.0,0.00014247,2]
[404146631,1769879433194,-1000.0,0.00014247,2]
[404146632,1769879433204,-500.0,0.00014247,2]
[404146633,1769879433213,-1000.0,0.00014247,2]
[404146634,1769879433222,-1000.0,0.00014247,2]
[404146635,1769879433232,-1000.0,0.00014247,2]
[404146636,1769879433241,-500.0,0.00014368,2]
[404146637,1769879433251,-1000.0,0.00014368,2]
[404146638,1769879433260,-1000.0,0.00014368,2]
[404146639,1769879433269,-1000.0,0.00014368,2]
[404146640,1769879433278,-600.0,0.00014768,2]
[404146641,1769879433288,-1000.0,0.00014795,2]
[404146642,1769879433297,-1000.0,0.00014795,2]
[404146643,1769879433306,-1000.0,0.00014795,2]
[404146644,1769879433318,-1000.0,0.00014795,2]
[404146645,1769879433328,-1000.0,0.00014795,2]
[404146646,1769879433337,-1000.0,0.00014795,2]
[404146647,1769879433346,-1000.0,0.00014795,2]
[404146648,1769879433356,-177.0,0.00015322,2]
[404146649,1769879433365,-335.78,0.00015559,2]
[404146650,1769879433376,-200.07068234,0.00016473,2]
[404146651,1769879433385,-204.0,0.00017322,2]
[404146652,1769879433395,-250.0,0.00017537,2]
[404146653,1769879433408,-231.0,0.00019322,2]
[404146654,1769879433418,-445.55,0.00020148,2]
[404146655,1769879433428,-273.12,0.00020238,3]
[404146656,1769879433438,-17419.4710285,0.00020248,2]
[404146657,1769879433447,-255.62737617,0.00020636,2]
[404146658,1769879433456,-500.0,0.00020636,2]
[404146659,1769879433465,-399.33922625,0.00020636,2]
[404146660,1769879433475,-2941.75004908,0.00020637,2]
[404146661,1769879433484,-151.0,0.000207,3]
[404146662,1769879433494,-258.0,0.00021322,2]
[404146663,1769879433503,-546.24,0.00021608,3]
[404146664,1769879433513,-151.0,0.000228,10]
[404146665,1769879433523,-285.0,0.00023322,2]
[404146666,1769879433532,-3000.0,0.000248,2]
[404146667,1769879433541,-3000.0,0.0002481,2]
[404146668,1769879433551,-3000.0,0.0002482,2]
[404146669,1769879433560,-3000.0,0.0002483,2]
[404146670,1769879433570,-3000.0,0.0002484,2]
[404146671,1769879433580,-3000.0,0.0002485,2]
[404146672,1769879433590,-3000.0,0.0002486,2]
[404146673,1769879433600,-3000.0,0.0002487,2]
[404146674,1769879433609,-3000.0,0.0002488,2]
[404146675,1769879433619,-3000.0,0.0002489,2]
[404146676,1769879433628,-3000.0,0.000249,2]
[404146677,1769879433637,-2903.64274943,0.000249,2]
[404146678,1769879433647,-2903.64274943,0.000249,2]
[404146679,1769879433661,-3000.0,0.0002491,2]
[404146680,1769879433671,-3000.0,0.0002492,2]
[404146681,1769879433681,-819.41,0.0002492,3]
[404146682,1769879433693,-3000.0,0.0002493,2]
[404146683,1769879433703,-3000.0,0.0002494,2]
[404146684,1769879433713,-3000.0,0.0002495,2]
[404146685,1769879433724,-3000.0,0.0002496,2]
[404146686,1769879433734,-3000.0,0.0002497,2]
[404146687,1769879433744,-3000.0,0.0002498,2]
[404146688,1769879433754,-3000.0,0.0002499,2]
[404146689,1769879433763,-3000.0,0.00025,2]
[404146690,1769879433773,-151.0,0.00025,10]
[404146691,1769879433783,-3000.0,0.0002501,2]
[404146692,1769879433797,-3000.0,0.0002502,2]
[404146693,1769879433807,-3000.0,0.0002503,2]
[404146694,1769879433817,-3467.261376,0.0002504,2]
[404146695,1769879433827,-150.0,0.00025206,2]
[404146696,1769879433837,-312.0,0.00025322,2]
[404146697,1769879433847,-150.0,0.00025343,2]
[404146698,1769879433856,-200.0,0.0002548,2]
[404146699,1769879433867,-160.0,0.00026113,2]
[404146700,1769879433878,-1041.66666667,0.00026113,2]
[404146701,1769879433888,-151.0,0.000271,14]
[404146702,1769879433912,-339.0,0.00027322,2]
[404146703,1769879433923,-2903.64274943,0.0002929,2]
[404146704,1769879433935,-151.0,0.000293,20]
[404146705,1769879433945,-366.0,0.00029322,2]
[404146706,1769879433955,-393.0,0.00031322,2]
[404146707,1769879433964,-151.0,0.000314,16]
[404146708,1769879433974,-1369.0,0.00032441,2]
[404146709,1769879433984,-630.0,0.00032441,2]
[404146710,1769879433995,-418.0,0.00032588,2]
[404146711,1769879434009,-151.0,0.000328,18]
[404146712,1769879434019,-500.0,0.00032876,10]
[404146713,1769879434029,-386.11828582,0.00032876,10]
[404146714,1769879434039,-420.0,0.00033322,120]
[404146715,1769879434049,-151.0,0.000336,15]
[404146716,1769879434058,-509.57,0.00033698,30]
[404146717,1769879434068,-7476.71098371,0.00033846,4]
[404146718,1769879434078,-400.0,0.00033887,11]
[404146719,1769879434087,-710.0,0.00033887,11]
[404146720,1769879434097,-710.0,0.00033946,11]
[404146721,1769879434109,-151.0,0.00034,14]
[404146722,1769879434118,-400.0,0.00034386,11]
[404146723,1769879434130,-291.1334,0.000345,30]
[404146724,1769879434139,-201.489,0.00034517,2]
[404146725,1769879434149,-222.615,0.00034517,2]
[404146726,1769879434163,-150.331,0.00034517,2]
[404146727,1769879434172,-250.0,0.00034517,2]
[404146728,1769879434181,-150.318,0.00034517,2]
[404146729,1769879434191,-509.57,0.0003452,31]
[404146730,1769879434199,-191.48,0.000346,30]
[404146731,1769879434209,-169.15,0.000346,2]
[404146732,1769879434218,-400.0,0.00034978,11]
[404146733,1769879434227,-487.0,0.00035,2]
[404146734,1769879434236,-487.0,0.00035,2]
[404146735,1769879434245,-951.3,0.00035,2]
[404146736,1769879434255,-200.0,0.00035014,120]
[404146737,1769879434264,-181.8034479,0.00035171,2]
[404146738,1769879434273,-151.0,0.000352,18]
[404146739,1769879434282,-447.0,0.00035322,120]
[404146740,1769879434291,-168.0,0.00035335,2]
[404146741,1769879434300,-509.57,0.00035342,32]
[404146742,1769879434310,-1753.45254438,0.00035355,2]
[404146743,1769879434319,-1369.0,0.00035441,2]
[404146744,1769879434328,-630.0,0.00035441,2]
[404146745,1769879434337,-710.0,0.00035493,11]
[404146746,1769879434346,-150.0,0.000355,10]
[404146747,1769879434355,-418.0,0.00035588,2]
[404146748,1769879434365,-2903.64274943,0.0003574,3]
[404146749,1769879434378,-2335.47564728,0.0003575,7]
[404146750,1769879434387,-358.06012508,0.0003575,2]
[404146751,1769879434396,-644.50822515,0.0003575,2]
[404146752,1769879434411,-1145.79240026,0.0003575,2]
[404146753,1769879434420,-1790.30062541,0.0003575,2]
[404146754,1769879434430,-2578.0329006,0.0003575,2]
[404146755,1769879434439,-3505.48023658,0.0003575,2]
[404146756,1769879434447,-409.19504354,0.0003575,2]
[404146757,1769879434457,-736.55107837,0.0003575,2]
[404146758,1769879434466,-1309.42413933,0.0003575,2]
[404146759,1769879434476,-2045.9752177,0.0003575,2]
[404146760,1769879434485,-2946.20431349,0.0003575,2]
[404146761,1769879434494,-4010.1114267,0.0003575,2]
[404146762,1769879434503,-5237.69655732,0.0003575,2]
[404146763,1769879434512,-6628.95970536,0.0003575,2]
[404146764,1769879434521,-399.86353221,0.0003575,2]
[404146765,1769879434531,-719.75435798,0.0003575,2]
[404146766,1769879434540,-1279.56330307,0.0003575,2]
[404146767,1769879434549,-1999.31766104,0.0003575,2]
[404146768,1769879434558,-2879.0174319,0.0003575,2]
[404146769,1769879434568,-3918.66261565,0.0003575,2]
[404146770,1769879434578,-293.73258544,0.0003575,2]
[404146771,1769879434588,-528.7186538,0.0003575,2]
[404146772,1769879434596,-939.94427342,0.0003575,2]
[404146773,1769879434605,-1468.66292721,0.0003575,2]
[404146774,1769879434615,-2114.87461519,0.0003575,2]
[404146775,1769879434624,-2878.57933734,0.0003575,2]
[404146776,1769879434634,-2903.64274943,0.00035806,3]
[404146777,1769879434642,-20239.17238764,0.00035812,2]
[404146778,1769879434656,-276.81,0.000359,14]
[404146779,1769879434665,-1000.0,0.00036,120]
[404146780,1769879434674,-6125.94097362,0.00036,120]
[404146781,1769879434684,-2903.64274943,0.00036092,3]
[404146782,1769879434694,-31345.02582566,0.00036093,2]
[404146783,1769879434703,-31699.80707922,0.00036093,2]
[404146784,1769879434712,-38610.84818768,0.00036102,30]
[404146785,1769879434722,-2903.64274943,0.00036143,3]
[404146786,1769879434731,-1060.48734929,0.00036147,3]
[404146787,1769879434740,-2903.64274943,0.00036153,3]
[404146788,1769879434750,-509.57,0.00036164,33]
[404146789,1769879434759,-151.0,0.00036193,31]
[404146790,1769879434768,-151.0,0.00036193,31]
[404146791,1769879434777,-151.0,0.00036193,31]
[404146792,1769879434786,-7602049.05902827,0.00036193,20]
[404146793,1769879434846,-1061328.92958847,0.00036193,20]
[404146794,1769879434859,-4921000.0,0.00036193,20]
[404146830,1769879438026,-1548.83918175,0.00013599,2]
[404146837,1769879438081,-86.4504099,0.00013599,2]
[404146839,1769879438090,-3178057.8768267,0.00036193,20]
[404146841,1769879438102,-502780.20321018,0.00036193,20]
[404147022,1769879440189,-1635.28959165,0.00016812,2]
[404147024,1769879440199,-814.51040836,0.00036193,20]
[404147028,1769879440238,-399.92414695,0.00036193,20]
[404147031,1769879440252,-5165.3797665,0.00036193,20]
[404147033,1769879440263,-18818.12830316,0.00036193,20]
[404147036,1769879440279,-1499.98806,0.00036193,20]
[404147038,1769879440289,-1239.88097274,0.00036193,20]
[404147310,1769879444028,-1635.28959165,0.00020026,2]
[404147312,1769879444038,-42448.9593111,0.00036193,20]
[404147314,1769879444049,-40500.00102735,0.00036193,20]
[404147316,1769879444061,-9377.06113134,0.00036193,20]
[404147318,1769879444072,-2674.60743027,0.00036193,20]
[404147333,1769879444354,-485.11962041,0.00036193,20]
[404147334,1769879444365,-550.68,0.00036193,20]
[404147335,1769879444375,-1239.5,0.00036193,20]
[404147407,1769879446269,-116.74385881,0.00036193,30]
[404147408,1769879446282,-573.75614119,0.00036193,30]
[404147409,1769879446292,-16301.40312298,0.00036193,20]
[404147410,1769879446307,-755.78089031,0.00036193,20]
[404147413,1769879514837,0.01,0.0001,2]
[404147414,1769879514861,10000.01,0.0001,2]
[404147415,1769879514889,10000.01,0.0001,2]
[404147416,1769879514915,10000.01,0.0001,2]
[404147417,1769879514939,10000.01,0.0001,2]
[404147418,1769879514972,10000.01,0.0001,2]
[404147419,1769879514997,10000.01,0.0001,2]
[404147420,1769879515021,10000.01,0.0001,2]
[404147421,1769879515044,10000.01,0.0001,2]
[404147422,1769879515068,10000.01,0.0001,2]
[404147423,1769879515094,10000.01,0.0001,2]
[404147424,1769879515119,10000.01,0.0001,2]
[404147425,1769879515142,10000.01,0.0001,2]
[404147426,1769879515171,10000.01,0.0001,2]
[404147427,1769879515195,10000.01,0.0001,2]
[404147428,1769879515241,245966.85,0.0001,2]
[404147433,1769879553727,10000.0,0.00030137,120]
[404147521,1769879646044,5000.0,0.000131,2]
[404147522,1769879668808,5000.0,0.000131,2]
[404147525,1769879692314,0.01,0.000131,2]
[404147526,1769879692337,4999.99,0.000131,2]
[404147527,1769879714722,5000.0,0.000131,2]
[404147541,1769879737635,5000.0,0.000131,2]
[404147552,1769879760908,0.01,0.000131,2]
[404147553,1769879760930,4999.99,0.000131,2]
[404147582,1769879783957,5000.0,0.000131,2]
[404147597,1769879806003,0.02,0.000131,2]
[404147598,1769879806025,4999.98,0.000131,2]
[404147599,1769879829504,2569.60490639,0.000131,2]
[404147745,1769880474094,2430.42509361,0.00012,5]
[404147746,1769880474120,287.27389887,0.00012,5]
[404147752,1769880545928,-500.0,0.00013273,2]
[404147753,1769880545957,-527.31612557,0.00013273,2]
[404147754,1769880545980,-272.68459961,0.00013273,2]
[404147755,1769880548456,-227.31540039,0.00013273,2]
[404147756,1769880548478,-72.67459961,0.00013273,2]
[404147757,1769880549694,9676.69471116,0.00012895,2]
[404147758,1769880549949,-89.65338902,0.00013273,2]
[404147759,1769880549973,-210.34661098,0.00013273,2]
[404147760,1769880551429,-297.42806753,0.00013273,2]
[404147761,1769880551454,-44.46280564,0.00013273,2]
[404147762,1769880553147,-455.53719436,0.00013273,2]
[404147763,1769880553168,-500.0,0.00013273,2]
[404147764,1769880553190,-500.0,0.00013273,2]
[404147765,1769880553211,-76.72437709,0.00013273,2]
[404147766,1769880554028,-355.64752824,0.00013273,2]
[404147767,1769880555623,-67.62809467,0.00013273,2]
[404147768,1769880555648,-500.0,0.00013273,2]
[404147769,1769880555671,-153.74374045,0.00013273,2]
[404147770,1769880557397,-270.6650113,0.00013273,2]
[404147771,1769880559393,-75.59124825,0.00013273,2]
[404147772,1769880559414,-76.72437709,0.00013273,2]
[404147773,1769880562294,-95.36336778,0.00013273,2]
[404147774,1769880562315,-204.69093765,0.00013273,2]
[404147775,1769880565049,-219.10013129,0.00013273,2]
[404147776,1769880566998,-76.20893106,0.00013273,2]
[404147777,1769880567020,-81.12344554,0.00013273,2]
[404147778,1769880569531,-243.40344553,0.00013273,2]
[404147779,1769880572265,-177.78373106,0.00013273,2]
[404147780,1769880572287,-269.47322228,0.00013273,2]
[404147781,1769880572307,-96.19023862,0.00013273,2]
[404147782,1769880573775,-136.88809652,0.00013273,2]
[404147783,1769880573800,-74.12229836,0.00013273,2]
[404147798,1769880578494,-237.31737076,0.00013273,2]
[404147801,1769880581139,-188.56033088,0.00013273,2]
[404147802,1769880581163,-96.76875374,0.00013326,2]
[404147803,1769880596989,-53.23124626,0.00013326,2]
[404147804,1769880597020,-500.0,0.00013699,2]
[404147805,1769880597048,-500.0,0.00013699,2]
[404147806,1769880597075,-501.34743043,0.00013699,2]
[404147807,1769880597107,-500.0,0.00013699,2]
[404147808,1769880597135,-500.0,0.00013699,2]
[404147809,1769880597163,-594.86628206,0.00013821,2]
[404147810,1769880597195,-1000.78959999,0.00013821,2]
[404147811,1769880597225,-500.0,0.00013821,2]
[404147812,1769880597473,-1000.0,0.00013821,2]
[404147813,1769880597508,-1000.0,0.00014247,2]
[404147814,1769880597537,-1000.0,0.00014247,2]
[404147815,1769880597566,-300.0,0.00014999,2]
[404147816,1769880604953,-261.0,0.00014999,2]
[404147817,1769880604981,-300.0,0.00014999,2]
[404147818,1769880605010,-287.0,0.00014999,2]
[404147819,1769880607074,-1200.0,0.00014999,2]
[404147820,1769880611634,-619.456376,0.00013273,2]
[404147821,1769880611664,-500.0,0.00013699,2]
[404147822,1769880611694,-504.15902707,0.00014247,2]
[404147823,1769880612149,-500.0,0.00013273,2]
[404147824,1769880612376,-3372.37031133,0.00015,2]
[404147825,1769880612590,-10000.01,0.00015,2]
[404147826,1769880612853,-4542.97776072,0.00015,2]
[404147827,1769880612893,-177.0,0.00015326,2]
[404147828,1769880612939,500.0,0.00013273,2]
[404147829,1769880612984,60.05447856,0.00013821,2]
[404147830,1769880613045,-940.86953465,0.00013821,2]
[404147831,1769880614353,500.0,0.00013273,2]
[404147832,1769880614540,159.78106884,0.00013273,2]
[404147833,1769880614945,402.96126214,0.00013273,2]
[404147834,1769880614979,336.4468968,0.00013699,2]
[404147835,1769880616420,500.0,0.00013273,2]
[404147836,1769880616790,502.71899874,0.00013699,2]
[404147837,1769880617207,500.0,0.00013273,2]
[404147838,1769880617863,500.0,0.00013273,2]
[404147839,1769880617926,500.0,0.00013821,2]
[404147840,1769880618402,500.15361623,0.00013273,2]
[404147841,1769880618431,500.0,0.00013699,2]
[404147842,1769880618489,1500.0,0.00014795,2]
[404147843,1769880618535,1000.0,0.00014247,2]
[404147844,1769880618689,386.16038037,0.00013699,2]
[404147845,1769880618802,330.04870758,0.00013821,2]
[404147846,1769880618837,669.95129242,0.00013821,2]
[404147847,1769880618901,500.0,0.00013273,2]
[404147848,1769880619111,1500.0,0.00014368,2]
[404147849,1769880619146,2000.0,0.00014916,2]
[404147850,1769880619176,300.0,0.00013673,2]
[404147851,1769880619211,600.0,0.00014221,2]
[404147852,1769880619240,300.0,0.00014768,2]
[404147853,1769880619289,500.0,0.00013273,2]
[404147854,1769880619331,1000.0,0.00013821,2]
[404147855,1769880619418,1500.0,0.00014368,2]
[404147856,1769880619457,1130.05870758,0.00014916,2]
[404147857,1769880619481,869.94129242,0.00014916,2]
[404147858,1769880619509,500.0,0.00013699,2]
[404147859,1769880619538,1000.0,0.00014247,2]
[404147860,1769880619694,500.0,0.00013273,2]
[404147861,1769880619722,1500.0,0.00014795,2]
[404147862,1769880619748,1502.6154559,0.00014368,2]
[404147863,1769880619831,1000.0,0.00013821,2]
[404147864,1769880628852,1004.52072158,0.00015342,2]
[404147911,1769880632114,-1672.25,0.00015342,2]
[404147913,1769880632126,-439.64,0.00015342,2]
[404147915,1769880632142,-288.63,0.00015342,2]
[404147917,1769880632154,-5426.18,0.00015342,2]
[404147919,1769880632164,-2000.0,0.00015342,2]
[404147921,1769880632173,-2049.83180329,0.00015464,2]
[404147923,1769880632183,-500.0,0.0001589,2]
[404147925,1769880632193,-248.81646483,0.00017326,2]
[404147927,1769880632203,-690.80750882,0.0001747,2]
[404147929,1769880632214,-493.41523936,0.00017608,2]
[404147931,1769880632223,-150.0,0.00019178,2]
[404147933,1769880632233,-250.0,0.00019726,2]
[404147935,1769880632243,-860.12232122,0.0002,7]
[404147937,1769880632252,-959.73901096,0.0002,7]
[404147939,1769880632262,-350.0,0.00020274,2]
[404147942,1769880632271,-450.0,0.00020822,2]
[404147945,1769880632280,-550.0,0.0002137,2]
[404147948,1769880632292,-251.10012348,0.00021918,2]
[404147951,1769880632300,-14545.05144088,0.00024774,2]
[404147954,1769880632310,-186.73775277,0.000249,2]
[404147957,1769880632319,-376.33692443,0.00025,2]
[404147960,1769880632328,-3046.42719667,0.00025,8]
[404147962,1769880632338,-204.31,0.00025755,2]
[404147966,1769880632348,-1041.66666667,0.0002614,2]
[404147967,1769880632359,-8331.65054876,0.00026142,2]
[404147970,1769880632371,-394.10700548,0.0002677,2]
[404147971,1769880632383,-180.03960871,0.00028485,2]
[404147973,1769880632393,-709.39260987,0.00029064,2]
[404147975,1769880632403,-1000.0,0.0003,10]
[404147977,1769880632412,-1292.0,0.00030136,2]
[404147980,1769880632423,-500.0,0.00030137,7]
[404147982,1769880632432,-427.73,0.00030137,2]
[404147984,1769880632442,-749.1449659,0.00030137,14]
[404147986,1769880632452,-160.0,0.00030161,2]
[404147988,1769880632462,-1261.14241754,0.00031359,2]
[404147989,1769880632472,-158.22,0.00031717,7]
[404147991,1769880632481,-315.96,0.00031897,3]
[404147993,1769880632490,-631.92,0.00031897,3]
[404147995,1769880632500,-174.48,0.00031897,10]
[404147997,1769880632509,-872.43,0.00031897,10]
[404147999,1769880632518,-315.95,0.00031907,3]
[404148001,1769880632529,-207311.958473,0.00031907,2]
[404148003,1769880632539,-633.50646605,0.00031916,2]
[404148005,1769880632548,-2400000.0,0.00031917,2]
[404148007,1769880632558,-487.0,0.00031917,2]
[404148009,1769880632568,-901.23,0.00031917,2]
[404148011,1769880632577,-3582.2583047,0.00031989,2]
[404148013,1769880632586,-178.78731552,0.00031989,31]
[404148015,1769880632596,-154.722,0.00031989,31]
[404148017,1769880632606,-500.0,0.00031989,31]
[404148019,1769880632616,-170.11,0.00032,14]
[404148021,1769880632626,-150.34,0.00032,2]
[404148023,1769880632642,-5694.98,0.00032,2]
[404148025,1769880632652,-500.0,0.00032016,2]
[404148028,1769880632661,-230.82662997,0.00032016,2]
[404148030,1769880632671,-500.0,0.00032016,2]
[404148032,1769880632680,-496.5631202,0.00032016,2]
[404148034,1769880632690,-500.0,0.00032016,2]
[404148035,1769880632700,-458.56500718,0.00032016,2]
[404148037,1769880632709,-81343.0592273,0.00032017,2]
[404148039,1769880632718,-500.0,0.00032263,31]
[404148041,1769880632728,-616.42905351,0.00032412,2]
[404148043,1769880632737,-500.0,0.00032537,31]
[404148045,1769880632747,-500.0,0.00032811,31]
[404148047,1769880632756,-500.0,0.00032984,7]
[404148049,1769880632766,-321.75770558,0.00032984,7]
[404148051,1769880632774,-361.2275508,0.00032984,7]
[404148052,1769880632784,-3747.61803965,0.00033,120]
[404148054,1769880632792,-561363.86686291,0.00033,2]
[404148056,1769880632802,-65391.57390013,0.00033026,4]
[404148058,1769880632811,-500.0,0.00033085,31]
[404148060,1769880632821,-168.0,0.00033099,2]
[404148062,1769880632831,-1000.0,0.00033151,120]
[404148064,1769880632841,-164.07558496,0.000332,117]
[404148066,1769880632850,-632.5,0.00033305,30]
[404148067,1769880632859,-199.09406855,0.00033359,31]